[Event "*** Titled Tuesday Blitz"]
[Site "Chess.com"]
[Date "2018.11.06"]
[Round "5"]
[White "Barcelona_Guy"]
[Black "woodhy"]
[Result "1-0"]
[WhiteElo "2481"]
[BlackElo "2424"]
[TimeControl "180+2"]
[EndTime "14:09:19 PST"]
[Termination "Barcelona_Guy won by checkmate"]

1. d4 {[%clk 0:03:01.9]} 1... Nf6 {[%clk 0:02:42.9]} 2. c4 {[%clk 0:02:58.8]}
2... e6 {[%clk 0:02:42.8]} 3. Nc3 {[%clk 0:02:58.1]} 3... Bb4 {[%clk 0:02:40.6]}
4. e3 {[%clk 0:02:59]} 4... b6 {[%clk 0:02:30.1]} 5. Nf3 {[%clk 0:02:57.5]} 5...
Bb7 {[%clk 0:02:30.2]} 6. Bd2 {[%clk 0:02:58.5]} 6... O-O {[%clk 0:02:28.8]} 7.
Bd3 {[%clk 0:02:59.5]} 7... d5 {[%clk 0:02:27.8]} 8. cxd5 {[%clk 0:03:01.4]}
8... Nxd5 {[%clk 0:02:28.6]} 9. O-O {[%clk 0:03:00.3]} 9... Be7 {[%clk
0:02:08.4]} 10. Rc1 {[%clk 0:02:58]} 10... Nd7 {[%clk 0:02:08.2]} 11. Nxd5
{[%clk 0:02:57]} 11... Bxd5 {[%clk 0:02:10.1]} 12. e4 {[%clk 0:02:53.7]} 12...
Bb7 {[%clk 0:02:10.1]} 13. b4 {[%clk 0:02:39.8]} 13... a5 {[%clk 0:02:10.3]} 14.
b5 {[%clk 0:02:39.8]} 14... Nc5 {[%clk 0:02:11]} 15. dxc5 {[%clk 0:02:20.8]}
15... Qxd3 {[%clk 0:02:12.9]} 16. c6 {[%clk 0:02:21.8]} 16... Bc8 {[%clk
0:02:13.2]} 17. Qa4 {[%clk 0:02:23.2]} 17... e5 {[%clk 0:02:01.5]} 18. Be3
{[%clk 0:02:11.2]} 18... f6 {[%clk 0:01:43.2]} 19. Rfd1 {[%clk 0:02:11.1]} 19...
Qa3 {[%clk 0:01:44.1]} 20. Qc4+ {[%clk 0:01:54.5]} 20... Kh8 {[%clk 0:01:44.7]}
21. Rd3 {[%clk 0:01:54]} 21... Qb4 {[%clk 0:01:41.5]} 22. Nd2 {[%clk 0:01:18.4]}
22... Qxc4 {[%clk 0:01:37]} 23. Nxc4 {[%clk 0:01:20.3]} 23... Be6 {[%clk
0:01:38.6]} 24. Kf1 {[%clk 0:01:18.6]} 24... Bxc4 {[%clk 0:01:36.4]} 25. Rxc4
{[%clk 0:01:19]} 25... Rfd8 {[%clk 0:01:38.3]} 26. Ke2 {[%clk 0:01:18.7]} 26...
Rxd3 {[%clk 0:01:38.1]} 27. Kxd3 {[%clk 0:01:20.6]} 27... Rd8+ {[%clk
0:01:39.4]} 28. Ke2 {[%clk 0:01:22.1]} 28... Kg8 {[%clk 0:01:40.3]} 29. Rc3
{[%clk 0:01:19]} 29... Kf7 {[%clk 0:01:39.9]} 30. g3 {[%clk 0:01:20]} 30... Ke6
{[%clk 0:01:40.9]} 31. f4 {[%clk 0:01:14.5]} 31... exf4 {[%clk 0:01:36.3]} 32.
gxf4 {[%clk 0:01:15.3]} 32... g6 {[%clk 0:01:37.5]} 33. h4 {[%clk 0:01:12.6]}
33... f5 {[%clk 0:01:28.7]} 34. exf5+ {[%clk 0:01:00.2]} 34... Kxf5 {[%clk
0:01:27.1]} 35. Bf2 {[%clk 0:01:01.3]} 35... Bd6 {[%clk 0:01:25.8]} 36. Rd3
{[%clk 0:00:59.1]} 36... Re8+ {[%clk 0:01:25.7]} 37. Kf3 {[%clk 0:01:00.5]}
37... Re6 {[%clk 0:01:05]} 38. Rd5+ {[%clk 0:01:00.1]} 38... Kf6 {[%clk
0:01:05.3]} 39. Bd4+ {[%clk 0:01:01.4]} 39... Kf7 {[%clk 0:01:05.9]} 40. h5
{[%clk 0:01:03]} 40... Ke7 {[%clk 0:01:03.3]} 41. a4 {[%clk 0:00:57.8]} 41...
Re1 {[%clk 0:00:59.8]} 42. hxg6 {[%clk 0:00:55.1]} 42... hxg6 {[%clk 0:01:01.7]}
43. Rg5 {[%clk 0:00:56.1]} 43... Kf7 {[%clk 0:00:59.4]} 44. Rg4 {[%clk
0:00:43.8]} 44... Rd1 {[%clk 0:00:54.2]} 45. Ke4 {[%clk 0:00:44.9]} 45... Re1+
{[%clk 0:00:53.2]} 46. Kd5 {[%clk 0:00:44.5]} 46... Rd1 {[%clk 0:00:54.2]} 47.
Ke4 {[%clk 0:00:28.2]} 47... Re1+ {[%clk 0:00:48.7]} 48. Kd3 {[%clk 0:00:29.5]}
48... Rf1 {[%clk 0:00:46.1]} 49. Ke3 {[%clk 0:00:27.2]} 49... Re1+ {[%clk
0:00:42.9]} 50. Kf3 {[%clk 0:00:19.6]} 50... Rd1 {[%clk 0:00:34.9]} 51. Be3
{[%clk 0:00:12.6]} 51... Ra1 {[%clk 0:00:35]} 52. Rh4 {[%clk 0:00:08.6]} 52...
Rxa4 {[%clk 0:00:32.8]} 53. Rh7+ {[%clk 0:00:09.7]} 53... Ke6 {[%clk 0:00:34]}
54. Rg7 {[%clk 0:00:10.5]} 54... Kf6 {[%clk 0:00:34.6]} 55. Rd7 {[%clk
0:00:11.5]} 55... Ra3 {[%clk 0:00:31.6]} 56. Ke4 {[%clk 0:00:12.2]} 56... Ra4+
{[%clk 0:00:32.5]} 57. Kd5 {[%clk 0:00:13.3]} 57... Rb4 {[%clk 0:00:32]} 58.
Bd4+ {[%clk 0:00:11.6]} 58... Kf5 {[%clk 0:00:30.2]} 59. Rxd6 {[%clk 0:00:08.1]}
59... Rxb5+ {[%clk 0:00:30.3]} 60. Kc4 {[%clk 0:00:09.1]} 60... Rb4+ {[%clk
0:00:28.5]} 61. Kd3 {[%clk 0:00:08.7]} 61... Kxf4 {[%clk 0:00:28.9]} 62. Rd7
{[%clk 0:00:09]} 62... Kf5 {[%clk 0:00:24.2]} 63. Rxc7 {[%clk 0:00:09.7]} 63...
Ke6 {[%clk 0:00:26.1]} 64. Rd7 {[%clk 0:00:09.9]} 64... a4 {[%clk 0:00:21.4]}
65. Rd8 {[%clk 0:00:10.2]} 65... Rb3+ {[%clk 0:00:20.6]} 66. Bc3 {[%clk
0:00:08.6]} 66... b5 {[%clk 0:00:20.3]} 67. c7 {[%clk 0:00:09.8]} 67... b4
{[%clk 0:00:20.9]} 68. c8=Q+ {[%clk 0:00:11.2]} 68... Kf7 {[%clk 0:00:22.4]} 69.
Qd7# {[%clk 0:00:10.6]} 1-0

[Event "*** Titled Tuesday Blitz"]
[Site "Chess.com"]
[Date "2018.11.06"]
[Round "5"]
[White "severomorskij"]
[Black "Gr3egor"]
[Result "0-1"]
[WhiteElo "2698"]
[BlackElo "2492"]
[TimeControl "180+2"]
[EndTime "14:10:12 PST"]
[Termination "Gr3egor won by resignation"]

1. d4 {[%clk 0:03:00.4]} 1... Nf6 {[%clk 0:03:01]} 2. Bg5 {[%clk 0:02:59.6]}
2... d5 {[%clk 0:02:59.6]} 3. Nd2 {[%clk 0:02:58]} 3... Bf5 {[%clk 0:02:59.3]}
4. Bxf6 {[%clk 0:02:56.4]} 4... exf6 {[%clk 0:03:00.7]} 5. e3 {[%clk 0:02:57.1]}
5... c6 {[%clk 0:03:02.2]} 6. c4 {[%clk 0:02:55.9]} 6... Qb6 {[%clk 0:03:01.8]}
7. Qb3 {[%clk 0:02:39.5]} 7... Nd7 {[%clk 0:02:58.2]} 8. cxd5 {[%clk 0:02:36.8]}
8... cxd5 {[%clk 0:02:59.5]} 9. Bb5 {[%clk 0:02:31.7]} 9... Bd6 {[%clk
0:02:51.4]} 10. Qxd5 {[%clk 0:02:24.6]} 10... Be6 {[%clk 0:02:48.7]} 11. Qh5
{[%clk 0:02:08.7]} 11... O-O {[%clk 0:02:44.6]} 12. Qe2 {[%clk 0:01:55]} 12...
a6 {[%clk 0:02:30.9]} 13. Bxd7 {[%clk 0:01:55.5]} 13... Bxd7 {[%clk 0:02:32.8]}
14. Ngf3 {[%clk 0:01:44.2]} 14... Qxb2 {[%clk 0:02:33.3]} 15. Rb1 {[%clk
0:01:41.5]} 15... Qxa2 {[%clk 0:02:33.9]} 16. O-O {[%clk 0:01:39.7]} 16... Bb5
{[%clk 0:02:35.1]} 17. Rxb5 {[%clk 0:01:40.7]} 17... axb5 {[%clk 0:02:36.3]} 18.
Qxb5 {[%clk 0:01:42.3]} 18... Qa6 {[%clk 0:02:34.5]} 19. Qd5 {[%clk 0:01:41.2]}
19... Rfd8 {[%clk 0:02:33.5]} 20. Qb3 {[%clk 0:01:40.8]} 20... b5 {[%clk
0:02:32.3]} 21. g3 {[%clk 0:01:41.2]} 21... Qa4 {[%clk 0:02:32.2]} 22. Qd3
{[%clk 0:01:37.5]} 22... Rdc8 {[%clk 0:02:27.8]} 23. Rb1 {[%clk 0:01:31.7]}
23... b4 {[%clk 0:02:29.1]} 24. Nc4 {[%clk 0:01:29.1]} 24... Qa6 {[%clk
0:02:26.2]} 25. Nfd2 {[%clk 0:01:29.5]} 25... Bf8 {[%clk 0:02:25]} 26. Qb3
{[%clk 0:01:29.8]} 26... Qa2 {[%clk 0:02:16.6]} 27. Kf1 {[%clk 0:01:10.5]} 27...
Qxb3 {[%clk 0:01:55.2]} 28. Rxb3 {[%clk 0:01:10.7]} 28... Ra2 {[%clk 0:01:56.9]}
29. Ke1 {[%clk 0:01:09.2]} 29... Rc2 {[%clk 0:01:56.4]} 30. Nb6 {[%clk
0:01:08.1]} 30... R8c3 {[%clk 0:01:51]} 31. Rb1 {[%clk 0:01:07.7]} 31... Rc1+
{[%clk 0:01:52.1]} 32. Rxc1 {[%clk 0:01:08.8]} 32... Rxc1+ {[%clk 0:01:53.5]}
33. Ke2 {[%clk 0:01:10.2]} 33... Rc3 {[%clk 0:01:44.8]} 34. Kd1 {[%clk
0:00:46.6]} 34... f5 {[%clk 0:01:37.5]} 35. Nb1 {[%clk 0:00:37.4]} 35... Rc6
{[%clk 0:01:33.7]} 36. Nd5 {[%clk 0:00:36.9]} 36... f6 {[%clk 0:01:26.6]} 37.
Nd2 {[%clk 0:00:34.9]} 37... Kf7 {[%clk 0:01:22.6]} 38. Nf4 {[%clk 0:00:27.8]}
38... g5 {[%clk 0:01:18.9]} 39. Nd3 {[%clk 0:00:22.6]} 39... Rc3 {[%clk
0:01:20]} 40. Nb2 {[%clk 0:00:22.5]} 40... Ke6 {[%clk 0:01:16.4]} 41. Ndc4
{[%clk 0:00:14.1]} 41... Kd5 {[%clk 0:01:15.1]} 42. Nb6+ {[%clk 0:00:13.7]}
42... Ke4 {[%clk 0:01:16.4]} 43. N6c4 {[%clk 0:00:10]} 43... Kf3 {[%clk
0:01:12.8]} 44. d5 {[%clk 0:00:10.9]} 44... Ke4 {[%clk 0:00:59.2]} 45. d6 {[%clk
0:00:10.8]} 45... Kd5 {[%clk 0:01:00.5]} 46. d7 {[%clk 0:00:10]} 46... Be7
{[%clk 0:01:01.6]} 47. Nb6+ {[%clk 0:00:06]} 47... Kc6 {[%clk 0:00:59.5]} 48.
N2a4 {[%clk 0:00:04.5]} 48... Ra3 {[%clk 0:01:00.6]} 49. Kc2 {[%clk 0:00:05.5]}
49... Bd8 {[%clk 0:00:54.7]} 50. h3 {[%clk 0:00:04.9]} 50... h5 {[%clk 0:00:48]}
51. Kb2 {[%clk 0:00:04.7]} 51... Rd3 {[%clk 0:00:49]} 52. Kc2 {[%clk 0:00:05.5]}
52... Rd6 {[%clk 0:00:43]} 53. Nc4 {[%clk 0:00:05.7]} 53... Rd5 {[%clk
0:00:41.3]} 54. Kb3 {[%clk 0:00:04.9]} 54... Rxd7 {[%clk 0:00:40]} 55. Kxb4
{[%clk 0:00:05.4]} 55... Rd3 {[%clk 0:00:37.7]} 56. Nab2 {[%clk 0:00:03.8]}
56... Rd5 {[%clk 0:00:37.4]} 57. Kc3 {[%clk 0:00:04.4]} 57... Ba5+ {[%clk
0:00:36.9]} 58. Kc2 {[%clk 0:00:05.3]} 58... Be1 {[%clk 0:00:37.3]} 59. Nd3
{[%clk 0:00:05.8]} 59... Rxd3 {[%clk 0:00:37.3]} 60. Kxd3 {[%clk 0:00:06.3]}
60... Bxf2 {[%clk 0:00:38.9]} 61. e4 {[%clk 0:00:06.3]} 61... Bxg3 {[%clk
0:00:33]} 62. exf5 {[%clk 0:00:06.9]} 62... Kd5 {[%clk 0:00:34.6]} 63. Nb6+
{[%clk 0:00:02.9]} 63... Ke5 {[%clk 0:00:35.4]} 64. Ke3 {[%clk 0:00:04.2]} 64...
Kxf5 {[%clk 0:00:36.6]} 65. Nd5 {[%clk 0:00:04.4]} 65... Be5 {[%clk 0:00:37.4]}
66. Kf3 {[%clk 0:00:04.5]} 66... g4+ {[%clk 0:00:38.9]} 67. hxg4+ {[%clk
0:00:05.8]} 67... hxg4+ {[%clk 0:00:40.8]} 68. Kg2 {[%clk 0:00:06.8]} 68... Ke4
{[%clk 0:00:42.4]} 69. Ne7 {[%clk 0:00:05.2]} 69... f5 {[%clk 0:00:43.7]} 70.
Ng6 {[%clk 0:00:05.7]} 70... f4 {[%clk 0:00:45]} 71. Nh4 {[%clk 0:00:06.5]}
71... Bf6 {[%clk 0:00:42.1]} 72. Ng6 {[%clk 0:00:07.3]} 72... Bg5 {[%clk
0:00:43.6]} 73. Kf2 {[%clk 0:00:07.4]} 73... Kf5 {[%clk 0:00:45]} 74. Nf8 {[%clk
0:00:08]} 74... Be7 {[%clk 0:00:44.4]} 75. Nd7 {[%clk 0:00:08.7]} 75... Ke4
{[%clk 0:00:43.8]} 76. Kg2 {[%clk 0:00:07.4]} 76... f3+ {[%clk 0:00:43.9]} 77.
Kg3 {[%clk 0:00:07.8]} 77... Bd6+ {[%clk 0:00:45.4]} 78. Kf2 {[%clk 0:00:02.7]}
78... g3+ {[%clk 0:00:46.5]} 79. Kf1 {[%clk 0:00:02.7]} 79... Ke3 {[%clk
0:00:43.6]} 80. Nf6 {[%clk 0:00:02.7]} 80... Bc5 {[%clk 0:00:37.7]} 81. Ng4+
{[%clk 0:00:02.6]} 81... Kf4 {[%clk 0:00:39.1]} 82. Nf2 {[%clk 0:00:03.8]} 82...
g2+ {[%clk 0:00:32.2]} 83. Kg1 {[%clk 0:00:04.8]} 83... Bxf2+ {[%clk 0:00:33.5]}
84. Kxf2 {[%clk 0:00:05.1]} 84... Ke4 {[%clk 0:00:35.1]} 85. Kg1 {[%clk
0:00:06.2]} 85... Ke3 {[%clk 0:00:36.6]} 86. Kh2 {[%clk 0:00:07.5]} 86... Ke2
{[%clk 0:00:37.4]} 87. Kg1 {[%clk 0:00:08]} 87... f2+ {[%clk 0:00:38.9]} 88.
Kxg2 {[%clk 0:00:08.3]} 88... f1=Q+ {[%clk 0:00:40.5]} 0-1

[Event "*** Titled Tuesday Blitz"]
[Site "Chess.com"]
[Date "2018.11.06"]
[Round "5"]
[White "Makalexa"]
[Black "narutosmith"]
[Result "1/2-1/2"]
[WhiteElo "2126"]
[BlackElo "2196"]
[TimeControl "180+2"]
[EndTime "14:11:07 PST"]
[Termination "Game drawn - insufficient material"]

1. e4 {[%clk 0:03:01.9]} 1... c5 {[%clk 0:03:01]} 2. Nf3 {[%clk 0:03:02.7]} 2...
e6 {[%clk 0:03:02.2]} 3. d4 {[%clk 0:03:03.7]} 3... cxd4 {[%clk 0:03:04.1]} 4.
Nxd4 {[%clk 0:03:04.8]} 4... Nc6 {[%clk 0:03:06]} 5. Nc3 {[%clk 0:03:01.9]} 5...
Qc7 {[%clk 0:03:07.1]} 6. Ndb5 {[%clk 0:02:57.5]} 6... Qb8 {[%clk 0:03:07]} 7.
Be3 {[%clk 0:02:58.8]} 7... Nf6 {[%clk 0:03:03.8]} 8. Bd3 {[%clk 0:02:48.9]}
8... a6 {[%clk 0:02:45.5]} 9. Bb6 {[%clk 0:02:48]} 9... axb5 {[%clk 0:02:37.7]}
10. Nxb5 {[%clk 0:02:49.9]} 10... Bd6 {[%clk 0:02:19.4]} 11. Nxd6+ {[%clk
0:02:26.8]} 11... Qxd6 {[%clk 0:02:19.5]} 12. O-O {[%clk 0:02:27.8]} 12... O-O
{[%clk 0:02:11]} 13. Kh1 {[%clk 0:02:28]} 13... Ne5 {[%clk 0:02:04.4]} 14. Be3
{[%clk 0:02:22.7]} 14... Nxd3 {[%clk 0:02:04]} 15. cxd3 {[%clk 0:02:21.9]} 15...
Qb4 {[%clk 0:01:28.4]} 16. f4 {[%clk 0:02:20.7]} 16... d6 {[%clk 0:01:25.1]} 17.
g4 {[%clk 0:02:18.5]} 17... e5 {[%clk 0:01:02.6]} 18. f5 {[%clk 0:02:16.5]}
18... h5 {[%clk 0:01:02.7]} 19. gxh5 {[%clk 0:02:14.4]} 19... d5 {[%clk
0:00:58.2]} 20. Rc1 {[%clk 0:01:34.4]} 20... Rd8 {[%clk 0:00:23.7]} 21. a3
{[%clk 0:01:03.7]} 21... Qxb2 {[%clk 0:00:20.9]} 22. Rc2 {[%clk 0:01:04.6]}
22... Qb5 {[%clk 0:00:19.1]} 23. Qf3 {[%clk 0:01:00.3]} 23... Qxd3 {[%clk
0:00:17.9]} 24. Rg2 {[%clk 0:00:54.2]} 24... Qxe4 {[%clk 0:00:13.9]} 25. Qg3
{[%clk 0:00:54.5]} 25... Ne8 {[%clk 0:00:04.1]} 26. h6 {[%clk 0:00:48.9]} 26...
Bxf5 {[%clk 0:00:04.6]} 27. hxg7 {[%clk 0:00:49.4]} 27... Bg6 {[%clk 0:00:05.6]}
28. Bg5 {[%clk 0:00:44.7]} 28... Rd6 {[%clk 0:00:06.2]} 29. Be7 {[%clk
0:00:44.9]} 29... Re6 {[%clk 0:00:06.8]} 30. Bf8 {[%clk 0:00:45.5]} 30... Nxg7
{[%clk 0:00:07.6]} 31. Bxg7 {[%clk 0:00:45.5]} 31... Kxg7 {[%clk 0:00:08.7]} 32.
Kg1 {[%clk 0:00:27.5]} 32... Rh8 {[%clk 0:00:07.1]} 33. Rgf2 {[%clk 0:00:27.8]}
33... Qd4 {[%clk 0:00:07.4]} 34. Qb3 {[%clk 0:00:22.7]} 34... Rh4 {[%clk
0:00:06.5]} 35. h3 {[%clk 0:00:19.3]} 35... Rh5 {[%clk 0:00:05.6]} 36. Kh2
{[%clk 0:00:20.5]} 36... Rg5 {[%clk 0:00:05.8]} 37. Qf3 {[%clk 0:00:17.7]} 37...
f5 {[%clk 0:00:06]} 38. Rg2 {[%clk 0:00:16.4]} 38... Rxg2+ {[%clk 0:00:06.2]}
39. Qxg2 {[%clk 0:00:18.3]} 39... f4 {[%clk 0:00:06.9]} 40. Qg4 {[%clk
0:00:18.8]} 40... Kf7 {[%clk 0:00:07.8]} 41. h4 {[%clk 0:00:19.2]} 41... Be4
{[%clk 0:00:07.9]} 42. h5 {[%clk 0:00:20]} 42... Rf6 {[%clk 0:00:08.4]} 43. Qd7+
{[%clk 0:00:19.7]} 43... Kg8 {[%clk 0:00:08.9]} 44. Rg1+ {[%clk 0:00:19.7]}
44... Kf8 {[%clk 0:00:09.6]} 45. Qd8+ {[%clk 0:00:20.2]} 45... Kf7 {[%clk
0:00:10.7]} 46. Qd7+ {[%clk 0:00:20.4]} 46... Kf8 {[%clk 0:00:11.8]} 47. Qd8+
{[%clk 0:00:18.9]} 47... Kf7 {[%clk 0:00:12.6]} 48. Qg8+ {[%clk 0:00:20.3]}
48... Ke7 {[%clk 0:00:13.6]} 49. Rg7+ {[%clk 0:00:21.4]} 49... Kd6 {[%clk
0:00:14.5]} 50. Qd8+ {[%clk 0:00:18.1]} 50... Kc5 {[%clk 0:00:14.6]} 51. Rc7+
{[%clk 0:00:17.8]} 51... Kb5 {[%clk 0:00:14.8]} 52. Rxb7+ {[%clk 0:00:17.1]}
52... Rb6 {[%clk 0:00:15.8]} 53. Qd7+ {[%clk 0:00:17]} 53... Kc4 {[%clk
0:00:14.9]} 54. Qa4+ {[%clk 0:00:16.4]} 54... Kd3 {[%clk 0:00:15.1]} 55. Qd1+
{[%clk 0:00:17.6]} 55... Ke3 {[%clk 0:00:15.9]} 56. Qg1+ {[%clk 0:00:17.7]}
56... Kf3 {[%clk 0:00:15.8]} 57. Qg2+ {[%clk 0:00:18.3]} 57... Ke3 {[%clk
0:00:16.5]} 58. Qg1+ {[%clk 0:00:18.3]} 58... Kd3 {[%clk 0:00:16.7]} 59. Qxd4+
{[%clk 0:00:16.2]} 59... Kxd4 {[%clk 0:00:17.1]} 60. Rxb6 {[%clk 0:00:18.1]}
60... f3 {[%clk 0:00:17.6]} 61. h6 {[%clk 0:00:16.2]} 61... Ke3 {[%clk 0:00:18]}
62. Rb3+ {[%clk 0:00:15.8]} 62... Ke2 {[%clk 0:00:18]} 63. Rb2+ {[%clk
0:00:16.7]} 63... Ke1 {[%clk 0:00:19]} 64. Kg3 {[%clk 0:00:17.3]} 64... d4
{[%clk 0:00:19.5]} 65. a4 {[%clk 0:00:17.2]} 65... d3 {[%clk 0:00:20.2]} 66. a5
{[%clk 0:00:18]} 66... d2 {[%clk 0:00:20.8]} 67. Rxd2 {[%clk 0:00:18.4]} 67...
Kxd2 {[%clk 0:00:22]} 68. Kf2 {[%clk 0:00:18.2]} 68... Kd3 {[%clk 0:00:21.8]}
69. a6 {[%clk 0:00:18.3]} 69... Ba8 {[%clk 0:00:14.4]} 70. h7 {[%clk 0:00:17.6]}
70... e4 {[%clk 0:00:15.6]} 71. h8=Q {[%clk 0:00:18.3]} 71... e3+ {[%clk
0:00:16.9]} 72. Kg3 {[%clk 0:00:18.9]} 72... f2 {[%clk 0:00:16]} 73. Qxa8 {[%clk
0:00:06.6]} 73... f1=Q {[%clk 0:00:16.6]} 74. Qd5+ {[%clk 0:00:07.8]} 74... Kc2
{[%clk 0:00:16]} 75. Qe4+ {[%clk 0:00:06.6]} 75... Kd2 {[%clk 0:00:16.5]} 76.
Qd4+ {[%clk 0:00:06.4]} 76... Qd3 {[%clk 0:00:16.4]} 77. Qxd3+ {[%clk
0:00:05.7]} 77... Kxd3 {[%clk 0:00:17.2]} 78. a7 {[%clk 0:00:06.1]} 78... e2
{[%clk 0:00:18.3]} 79. a8=Q {[%clk 0:00:05.7]} 79... e1=Q+ {[%clk 0:00:19.5]}
80. Kg2 {[%clk 0:00:06.4]} 80... Qe2+ {[%clk 0:00:18.6]} 81. Kg3 {[%clk
0:00:07.1]} 81... Qe5+ {[%clk 0:00:19.5]} 82. Kg2 {[%clk 0:00:07.8]} 82... Qg5+
{[%clk 0:00:20.3]} 83. Kh2 {[%clk 0:00:07.9]} 83... Qh4+ {[%clk 0:00:20.7]} 84.
Kg2 {[%clk 0:00:08.8]} 84... Qg5+ {[%clk 0:00:20.9]} 85. Kf2 {[%clk 0:00:09.3]}
85... Qd2+ {[%clk 0:00:21.7]} 86. Kg3 {[%clk 0:00:09.5]} 86... Qe1+ {[%clk
0:00:21.8]} 87. Kh2 {[%clk 0:00:09.8]} 87... Qh4+ {[%clk 0:00:20.8]} 88. Kg2
{[%clk 0:00:10.5]} 88... Qg4+ {[%clk 0:00:20.6]} 89. Kh2 {[%clk 0:00:10.7]}
89... Qe2+ {[%clk 0:00:21.5]} 90. Qg2 {[%clk 0:00:10.1]} 90... Qxg2+ {[%clk
0:00:13.1]} 91. Kxg2 {[%clk 0:00:09.5]} 1/2-1/2